bitfinex/quotes_BTCUSD_20240810
["timestamp","ask_amount","ask_price","bid_price","bid_amount"]
[1723317713885,0.002832,61151.0,61150.0,1.01066733]
[1723317714085,0.002832,61151.0,61150.0,1.1254699]
[1723317714466,0.002832,61151.0,61150.0,0.92179212]
[1723317714716,0.002832,61151.0,61150.0,1.21433172]
[1723317714913,0.002832,61151.0,61150.0,1.14125027]
[1723317715114,0.002832,61151.0,61150.0,1.31478227]
[1723317715316,0.002832,61151.0,61150.0,1.46872496]
[1723317715516,0.002832,61151.0,61150.0,1.50650927]
[1723317715923,0.002832,61151.0,61150.0,1.62826318]
[1723317716139,0.002832,61151.0,61150.0,1.78133992]
[1723317716354,0.001832,61151.0,61150.0,2.0361794]
[1723317716517,0.000832,61151.0,61150.0,2.0291794]
[1723317716838,0.002832,61151.0,61150.0,2.0501794]
[1723317717043,0.002832,61151.0,61150.0,1.8866474]
[1723317717183,0.000832,61151.0,61150.0,1.8656474]
[1723317717390,0.000831,61159.0,61158.0,0.76157931]
[1723317717591,0.000831,61159.0,61158.0,2.2249432]
[1723317717785,0.000831,61159.0,61158.0,2.23473437]
[1723317717994,0.000831,61159.0,61158.0,2.2269432]
[1723317718526,0.000831,61159.0,61158.0,2.23673423]
[1723317719092,0.000831,61159.0,61158.0,2.19894992]
[1723317719299,0.000831,61159.0,61158.0,2.23673423]
[1723317719697,0.000831,61159.0,61158.0,2.25073423]
[1723317720218,0.000831,61159.0,61158.0,2.26069181]
[1723317720415,0.000831,61159.0,61158.0,2.27469181]
[1723317720642,0.000831,61159.0,61158.0,2.25269181]
[1723317720849,0.000831,61159.0,61158.0,1.72765827]
[1723317721050,0.000831,61159.0,61158.0,1.27650635]
[1723317721252,0.000831,61159.0,61158.0,1.05816538]
[1723317721854,0.000831,61159.0,61158.0,1.05817632]
[1723317722306,6.668e-05,61167.0,61166.0,0.58799531]
[1723317722508,6.668e-05,61167.0,61166.0,1.05464474]
[1723317722754,6.668e-05,61167.0,61166.0,1.41973374]
[1723317722953,6.668e-05,61167.0,61166.0,1.40394943]
[1723317723536,6.668e-05,61167.0,61166.0,1.20031492]
[1723317723737,6.668e-05,61167.0,61166.0,1.40393309]
[1723317723950,6.668e-05,61167.0,61166.0,1.41793309]
[1723317724187,6.668e-05,61167.0,61166.0,1.49663642]
[1723317724802,6.668e-05,61167.0,61166.0,1.51442073]
[1723317724992,6.668e-05,61167.0,61166.0,1.50663642]
[1723317725401,0.00089868,61167.0,61166.0,1.93980811]
[1723317725747,0.00089868,61167.0,61166.0,1.97759242]
[1723317726354,0.00089868,61167.0,61166.0,2.05049745]
[1723317726581,0.00089868,61167.0,61166.0,2.01214567]
[1723317727258,0.00089868,61167.0,61166.0,2.02610751]
[1723317727475,0.00089868,61167.0,61166.0,1.9883232]
[1723317728393,0.00089868,61167.0,61166.0,1.9743232]
[1723317728542,0.00089868,61167.0,61166.0,1.97755426]
[1723317729126,0.00089868,61167.0,61166.0,1.74506526]
[1723317729335,0.00089868,61167.0,61166.0,0.98340988]
[1723317729535,0.00089868,61167.0,61166.0,0.91554333]
[1723317729730,0.00089868,61167.0,61166.0,0.90154333]
[1723317730158,0.00089868,61167.0,61166.0,0.91554333]
[1723317730491,0.07979868,61167.0,61166.0,0.55878102]
[1723317730691,0.08799015,61167.0,61166.0,0.42507633]
[1723317731008,0.08799015,61167.0,61166.0,0.28934323]
[1723317731234,0.08799015,61167.0,61166.0,0.17959923]
[1723317731488,0.08799015,61167.0,61166.0,0.02978431]
[1723317732058,0.08799015,61167.0,61166.0,0.01578431]
[1723317732437,0.08799015,61167.0,61166.0,0.09752831]
[1723317732642,0.08799015,61167.0,61166.0,0.26134323]
[1723317732865,0.08799015,61167.0,61166.0,0.72409591]
[1723317733267,0.07979868,61167.0,61166.0,0.72409591]
[1723317733645,0.00089868,61167.0,61166.0,0.8718006]
[1723317733845,0.00089868,61167.0,61166.0,0.88758491]
[1723317734235,0.00089868,61167.0,61166.0,0.88758047]
[1723317734541,0.00089868,61167.0,61166.0,0.75481023]
[1723317734744,0.00089868,61167.0,61166.0,0.71130489]
[1723317734959,0.00089868,61167.0,61166.0,0.7270892]
[1723317735155,0.00089868,61167.0,61166.0,0.7240892]
[1723317735827,0.00089868,61167.0,61166.0,0.8875782]
[1723317736035,0.00089868,61167.0,61166.0,0.8915782]
[1723317736634,0.00089868,61167.0,61166.0,1.26295596]
[1723317736839,0.00089868,61167.0,61166.0,1.26795596]
[1723317737038,0.00089868,61167.0,61166.0,1.43144496]
[1723317737387,0.00089868,61167.0,61166.0,1.43344496]
[1723317737597,0.00089868,61167.0,61166.0,1.42244496]
[1723317737824,0.00089868,61167.0,61166.0,1.35455319]
[1723317738000,0.00089868,61167.0,61166.0,1.43443017]
[1723317738143,0.00089868,61167.0,61166.0,1.44543017]
[1723317738554,0.00089868,61167.0,61166.0,1.45743017]
[1723317738773,0.00089868,61167.0,61166.0,1.47743017]
[1723317738972,0.00089868,61167.0,61166.0,1.69000024]
[1723317739176,0.00089868,61167.0,61166.0,1.60018823]
[1723317739537,0.00089868,61167.0,61166.0,1.79974992]
[1723317739675,0.00089868,61167.0,61166.0,1.82407039]
[1723317739876,0.00089868,61167.0,61166.0,1.69046806]
[1723317740319,0.00089868,61167.0,61166.0,1.80172973]
[1723317740472,0.00089868,61167.0,61166.0,1.83438055]
[1723317740678,0.00089868,61167.0,61166.0,1.88238055]
[1723317741098,0.00089868,61167.0,61166.0,1.74733457]
[1723317741325,0.00089868,61167.0,61166.0,1.73333457]
[1723317741735,0.00089868,61167.0,61166.0,1.74733457]
[1723317741937,0.00089868,61167.0,61166.0,1.98097175]
[1723317742135,0.00089868,61167.0,61166.0,1.96697175]
[1723317742474,0.00089868,61167.0,61166.0,1.73755119]
[1723317742604,0.00089868,61167.0,61166.0,1.7553355]
[1723317742813,0.00089868,61167.0,61166.0,1.85261821]
[1723317743010,0.00089868,61167.0,61166.0,1.4779465]
[1723317743357,0.00089868,61167.0,61166.0,1.21276667]
[1723317743642,0.00089868,61167.0,61166.0,1.28064974]
[1723317743817,0.00089868,61167.0,61166.0,1.34852512]
[1723317744193,0.00089868,61167.0,61166.0,1.33274081]
[1723317744363,0.00089868,61167.0,61166.0,1.34852512]
[1723317745205,0.00089868,61167.0,61166.0,0.98343612]
[1723317745407,0.08289868,61167.0,61166.0,0.98343612]
[1723317745820,0.08289868,61167.0,61166.0,0.77981023]
[1723317745994,0.08289868,61167.0,61166.0,0.91556969]
[1723317746207,0.08289868,61167.0,61166.0,0.98344955]
[1723317746642,0.08289868,61167.0,61166.0,0.95544955]
[1723317746837,0.08289868,61167.0,61166.0,0.90056969]
[1723317747049,0.08289868,61167.0,61166.0,0.16175946]
[1723317747216,0.08289868,61167.0,61166.0,0.14875946]
[1723317747411,0.08289868,61167.0,61166.0,0.014]
[1723317747412,0.09104488,61167.0,61166.0,0.014]
[1723317747669,0.09104488,61167.0,61166.0,0.027]
[1723317747810,0.09104488,61167.0,61166.0,0.013]
[1723317748188,0.09104488,61167.0,61165.0,0.09752931]
[1723317748670,0.09104488,61167.0,61165.0,0.091745]
[1723317749578,0.09104488,61167.0,61165.0,0.09752931]
[1723317749731,0.09104488,61167.0,61166.0,0.01578431]
[1723317749946,0.09104488,61167.0,61166.0,0.09752831]
[1723317750728,0.09104488,61167.0,61166.0,0.42483223]
[1723317751775,0.09104488,61167.0,61165.0,0.00578431]
[1723317751983,0.09104488,61167.0,61163.0,0.163496]
[1723317751984,0.082,61165.0,61163.0,0.163496]
[1723317752184,0.082,61165.0,61164.0,0.09753131]
[1723317752521,0.082,61165.0,61164.0,0.26102531]
[1723317752713,0.082,61165.0,61164.0,0.09753131]
[1723317754710,0.082,61165.0,61164.0,0.26102531]
[1723317754904,0.082,61165.0,61164.0,0.39680847]
[1723317755351,0.00089868,61167.0,61164.0,0.39780847]
[1723317755559,0.00089868,61167.0,61166.0,0.58799531]
[1723317755706,0.00089868,61167.0,61166.0,0.87180908]
[1723317755916,0.00089868,61167.0,61166.0,0.88759339]
[1723317756752,0.00089868,61167.0,61166.0,0.87180908]
[1723317757433,0.00089868,61167.0,61166.0,0.88759339]
[1723317757635,0.00089868,61167.0,61166.0,0.87180908]
[1723317757828,0.00089868,61167.0,61166.0,0.89080908]
[1723317759127,0.00089868,61167.0,61166.0,0.88080908]
[1723317759411,0.00089868,61167.0,61166.0,0.89659339]
[1723317759651,0.00089868,61167.0,61166.0,0.87180908]
[1723317759855,0.00089868,61167.0,61166.0,0.89759339]
[1723317760034,0.00089868,61167.0,61166.0,0.88180908]
[1723317760432,0.00089868,61167.0,61166.0,0.89280908]
[1723317761376,0.00089868,61167.0,61166.0,0.75702592]
[1723317761529,0.00089868,61167.0,61166.0,0.89279312]
[1723317762358,0.00089868,61167.0,61166.0,1.12416163]
[1723317762566,0.00089868,61167.0,61166.0,1.17292544]
[1723317762733,0.00089868,61167.0,61166.0,1.11416163]
[1723317762939,0.00089868,61167.0,61166.0,1.19830735]
[1723317763465,0.00089868,61167.0,61166.0,1.01281835]
[1723317763618,0.00089868,61167.0,61166.0,0.93967263]
[1723317763815,0.00089868,61167.0,61166.0,0.97745694]
[1723317764026,0.00089868,61167.0,61166.0,1.00045694]
[1723317764274,0.00089868,61167.0,61166.0,1.06360266]
[1723317764476,0.00089868,61167.0,61166.0,1.00145694]
[1723317764683,0.00089868,61167.0,61166.0,1.22609166]
[1723317764861,0.00089868,61167.0,61166.0,0.9268329]
[1723317765082,0.00089868,61167.0,61166.0,1.0588025]
[1723317765483,0.00089868,61167.0,61166.0,1.07458681]
[1723317765689,0.00089868,61167.0,61166.0,1.0588025]
[1723317765884,0.00089868,61167.0,61166.0,1.06358681]
[1723317766088,0.00089868,61167.0,61166.0,1.0618025]
[1723317766286,0.00089868,61167.0,61166.0,1.25587403]
[1723317766509,0.00089868,61167.0,61166.0,1.25583687]
[1723317766684,0.00089868,61167.0,61166.0,1.24384174]
[1723317766899,0.00089868,61167.0,61166.0,1.07415212]
[1723317767299,0.00089868,61167.0,61166.0,1.08815212]
[1723317767505,0.00089868,61167.0,61166.0,1.2438388]
[1723317767909,0.00089868,61167.0,61166.0,1.43711356]
[1723317768116,0.00089868,61167.0,61166.0,1.42057351]
[1723317768290,0.00089868,61167.0,61166.0,1.76500243]
[1723317768473,0.00089868,61167.0,61166.0,1.8812881]
[1723317768673,0.00089868,61167.0,61166.0,1.8672881]
[1723317768887,0.00089868,61167.0,61166.0,1.8532881]
[1723317769311,0.00089868,61167.0,61166.0,1.85327827]
[1723317769728,0.00089868,61167.0,61166.0,1.83949396]
[1723317770150,0.00089868,61167.0,61166.0,1.57824501]
[1723317770353,0.00089868,61167.0,61166.0,1.33221339]
[1723317770612,0.00089868,61167.0,61166.0,1.13679423]
[1723317770809,0.00089868,61167.0,61166.0,1.31806754]
[1723317771007,0.00089868,61167.0,61166.0,1.31428323]
[1723317771482,0.00089868,61167.0,61166.0,1.32828323]
[1723317771664,0.00089868,61167.0,61166.0,1.34606754]
[1723317771844,0.00089868,61167.0,61166.0,1.42957199]
[1723317772043,0.00089868,61167.0,61166.0,1.44357199]
[1723317772220,0.00089868,61167.0,61166.0,1.42578768]
[1723317772422,0.00089868,61167.0,61166.0,1.42957199]
[1723317772635,0.00089868,61167.0,61166.0,1.42578768]
[1723317772842,0.00089868,61167.0,61166.0,1.32828323]
[1723317773040,0.00089868,61167.0,61166.0,1.31428323]
[1723317773242,0.00089868,61167.0,61166.0,1.42757199]
[1723317773441,0.00089868,61167.0,61166.0,1.42757559]
[1723317773646,0.00089868,61167.0,61166.0,1.44157559]
[1723317773892,0.00089868,61167.0,61166.0,0.8964557]
[1723317774121,0.00089868,61167.0,61166.0,1.03221463]
[1723317774957,0.00089868,61167.0,61166.0,1.03221453]
[1723317775153,0.00089868,61167.0,61166.0,0.96766791]
[1723317775368,0.00089868,61167.0,61166.0,0.91557081]
[1723317777284,0.00089868,61167.0,61166.0,0.77981023]
[1723317777469,0.00089868,61167.0,61166.0,0.91557275]
[1723317777866,0.08059868,61167.0,61166.0,0.75208375]
[1723317778769,0.08059868,61167.0,61166.0,0.73808375]
[1723317778974,0.08059868,61167.0,61166.0,0.74308375]
[1723317779541,0.08059868,61167.0,61166.0,0.73808375]
[1723317779740,0.08059868,61167.0,61166.0,0.74508375]
[1723317780287,0.08059868,61167.0,61166.0,0.73108375]
[1723317780455,0.08059868,61167.0,61166.0,0.73808375]
[1723317780838,0.08059868,61167.0,61166.0,0.73809608]
[1723317781613,0.08059868,61167.0,61166.0,0.57428116]
[1723317781822,0.08059868,61167.0,61166.0,0.55849685]
[1723317783026,0.08059868,61167.0,61166.0,0.55149685]
[1723317783226,0.08059868,61167.0,61166.0,0.56728116]
[1723317783427,0.08059868,61167.0,61166.0,0.55149685]
[1723317783833,0.08059868,61167.0,61166.0,0.55849685]
[1723317784335,0.08059868,61167.0,61166.0,0.5584974]
[1723317784704,0.08059868,61167.0,61166.0,0.5514974]
[1723317784907,0.08059868,61167.0,61166.0,0.55149721]
[1723317785458,0.08059868,61167.0,61166.0,0.55849721]
[1723317785954,0.08059868,61167.0,61166.0,0.56728152]
[1723317786154,0.08059868,61167.0,61166.0,0.57428152]
[1723317786503,0.08059868,61167.0,61166.0,0.55849721]
[1723317786904,0.08059868,61167.0,61166.0,0.55149721]
[1723317787142,0.08059868,61167.0,61166.0,0.55849721]
[1723317787863,0.08059868,61167.0,61166.0,0.41079252]
[1723317788084,0.08059868,61167.0,61166.0,0.57428152]
[1723317788516,0.08059868,61167.0,61166.0,0.57428822]
[1723317791347,0.08059868,61167.0,61166.0,0.14978191]
[1723317791792,0.08059868,61167.0,61166.0,0.24152591]
[1723317792000,0.08059868,61167.0,61166.0,0.13578191]
[1723317792210,0.08059868,61167.0,61166.0,0.007]
[1723317792407,0.08059868,61167.0,61166.0,0.098744]
[1723317792838,0.08059868,61167.0,61166.0,0.091744]
[1723317793053,0.08059868,61167.0,61166.0,0.007]
[1723317793259,0.08059868,61167.0,61166.0,0.014]
[1723317793467,0.08059868,61167.0,61166.0,0.007]
[1723317793667,0.16234168,61167.0,61166.0,0.007]
[1723317793904,0.54941368,61167.0,61166.0,0.014]
[1723317794111,0.99093029,61167.0,61166.0,0.014]
[1723317794274,1.15441629,61167.0,61166.0,0.014]
[1723317794481,1.15441629,61167.0,61166.0,0.007]
[1723317794482,1.20338376,61167.0,61166.0,0.007]
[1723317794688,0.708467,61160.0,61159.0,0.0009152]
[1723317794887,0.808467,61160.0,61159.0,0.0009152]
[1723317795092,0.82268269,61160.0,61159.0,0.0009152]
[1723317796570,0.98649761,61160.0,61159.0,0.0009152]
[1723317796769,0.98228192,61160.0,61159.0,0.0009152]
[1723317796974,0.644962,61160.0,61159.0,0.0009152]
[1723317797384,0.644962,61160.0,61159.0,0.0019152]
[1723317797854,0.654962,61160.0,61159.0,0.0029152]
[1723317798274,0.818467,61160.0,61159.0,0.0029152]
[1723317798885,0.654962,61160.0,61159.0,0.0029152]
[1723317799375,0.818467,61160.0,61159.0,0.0029152]
[1723317799581,0.98228192,61160.0,61159.0,0.0029152]
[1723317804313,0.81877692,61160.0,61159.0,0.0029152]
[1723317804518,0.80877692,61160.0,61159.0,0.0029152]
[1723317804716,0.654962,61160.0,61159.0,0.0029152]
[1723317805338,0.818467,61160.0,61159.0,0.0029152]
[1723317807567,0.819299,61160.0,61159.0,0.0029152]
[1723317809777,0.645794,61160.0,61159.0,0.0029152]
[1723317810175,0.655794,61160.0,61159.0,0.0029152]
[1723317810591,0.655794,61160.0,61159.0,0.0019152]
[1723317810717,0.655794,61160.0,61159.0,0.0009152]
[1723317810918,0.655794,61160.0,61159.0,0.0029152]
[1723317812089,0.655794,61160.0,61159.0,0.0019152]
[1723317812295,0.655794,61160.0,61159.0,0.0029152]
[1723317812454,0.645794,61160.0,61159.0,0.0029152]
[1723317812648,0.645794,61160.0,61159.0,0.0019152]
[1723317812854,0.655794,61160.0,61159.0,0.0019152]
[1723317813471,0.655794,61160.0,61159.0,0.0029152]
[1723317813838,0.662345,61160.0,61159.0,0.0029152]
[1723317814169,0.662345,61160.0,61159.0,0.0009152]
[1723317814577,0.662345,61160.0,61159.0,0.0029152]
[1723317815202,0.662345,61160.0,61159.0,0.0019152]
[1723317815614,0.662345,61160.0,61159.0,0.0029152]
[1723317816539,0.592245,61160.0,61159.0,0.0029152]
[1723317816740,0.592245,61160.0,61159.0,0.0019152]
[1723317817069,0.592245,61160.0,61159.0,0.0029152]
[1723317818190,0.346089,61160.0,61159.0,0.0029152]
[1723317819532,0.346089,61160.0,61159.0,0.0019152]
[1723317819740,0.346089,61160.0,61159.0,0.0029152]
[1723317819913,0.346089,61160.0,61159.0,0.0019152]
[1723317820267,0.346089,61160.0,61159.0,0.0009152]
[1723317820714,0.346089,61160.0,61159.0,0.0019152]
[1723317821058,0.346089,61160.0,61159.0,0.0009152]
[1723317821471,0.5096589,61160.0,61159.0,0.0009152]
[1723317821668,0.3461539,61160.0,61159.0,0.0009152]
[1723317822032,0.5096589,61160.0,61159.0,0.0009152]
[1723317823011,0.5981589,61160.0,61159.0,0.0009152]
[1723317823211,0.82827382,61160.0,61159.0,0.0009152]
[1723317823644,0.99177882,61160.0,61159.0,0.0009152]
[1723317825175,0.82827382,61160.0,61159.0,0.0009152]
[1723317825327,0.99177882,61160.0,61159.0,0.0009152]
[1723317825529,0.82827382,61160.0,61159.0,0.0009152]
[1723317830166,0.6544589,61160.0,61159.0,0.0009152]
[1723317830359,0.5096589,61160.0,61159.0,0.0009152]
[1723317831105,0.5196589,61160.0,61159.0,0.0009152]
[1723317832755,0.5096589,61160.0,61159.0,0.0009152]
[1723317832971,0.1826489,61160.0,61159.0,0.0009152]
[1723317833490,0.5096589,61160.0,61159.0,0.0009152]
[1723317834914,0.6548589,61160.0,61159.0,0.0009152]
[1723317837401,0.6548589,61160.0,61159.0,0.0029152]
[1723317837896,1.93488709,61160.0,61159.0,0.0029152]
[1723317838098,1.95465726,61160.0,61159.0,0.0029152]
[1723317838308,2.07711157,61160.0,61159.0,0.0029152]
[1723317838708,1.95044157,61160.0,61159.0,0.0019152]
[1723317839109,2.07305798,61160.0,61159.0,0.0029152]
[1723317839319,1.95044157,61160.0,61159.0,0.0029152]
[1723317839523,1.95044157,61160.0,61159.0,0.0009152]
[1723317839740,1.95044157,61160.0,61159.0,0.0029152]
[1723317840164,1.95044157,61160.0,61159.0,0.0019152]
[1723317840376,2.11541001,61160.0,61159.0,0.0009152]
[1723317840545,2.11541001,61160.0,61159.0,0.0029152]
[1723317840788,2.07795971,61160.0,61159.0,0.0029152]
[1723317840996,2.22490489,61160.0,61159.0,0.0029152]
[1723317841338,2.27955971,61160.0,61159.0,0.0029152]
[1723317841812,2.27955971,61160.0,61159.0,0.0009152]
[1723317841968,2.27955971,61160.0,61159.0,0.0019152]
[1723317842196,2.30455971,61160.0,61159.0,0.0029152]
[1723317842596,2.3087754,61160.0,61159.0,0.0029152]
[1723317842849,2.30874425,61160.0,61159.0,0.0029152]
[1723317843346,2.30871113,61160.0,61159.0,0.0029152]
[1723317845355,1.91184074,61160.0,61159.0,0.0029152]
[1723317845548,1.97865549,61160.0,61159.0,0.0029152]
[1723317845764,1.8531398,61160.0,61159.0,0.0029152]
[1723317845969,1.85735549,61160.0,61159.0,0.0029152]
[1723317846504,1.77675428,61160.0,61159.0,0.0029152]
[1723317847745,1.69645428,61160.0,61159.0,0.0029152]
[1723317848504,1.69637598,61160.0,61159.0,0.0029152]
[1723317848703,1.57385522,61160.0,61159.0,0.0029152]
[1723317849407,1.65613673,61160.0,61159.0,0.0029152]
[1723317851350,1.65192104,61160.0,61159.0,0.0029152]
[1723317851611,1.54098605,61160.0,61159.0,0.0029152]
[1723317851770,1.49197882,61160.0,61159.0,0.0029152]
[1723317852753,1.56549133,61160.0,61159.0,0.0029152]
[1723317853194,1.49197882,61160.0,61159.0,0.0029152]
[1723317853413,1.49619451,61160.0,61159.0,0.0029152]
[1723317853820,1.49197882,61160.0,61159.0,0.0029152]
[1723317853990,1.56970702,61160.0,61159.0,0.0029152]
[1723317854168,1.70990702,61160.0,61159.0,0.0029152]
[1723317854376,1.83718898,61160.0,61159.0,0.0029152]
[1723317855158,1.77475262,61160.0,61159.0,0.0029152]
[1723317855359,1.83732838,61160.0,61159.0,0.0029152]
[1723317855618,1.69959193,61160.0,61159.0,0.0019152]
[1723317855816,1.70380762,61160.0,61159.0,0.0019152]
[1723317856046,1.69380762,61160.0,61159.0,0.0019152]
[1723317856244,1.70180762,61160.0,61159.0,0.0029152]
[1723317856538,1.69380762,61160.0,61159.0,0.0019152]
[1723317856890,1.88460084,61160.0,61159.0,0.0019152]
[1723317857100,1.94333433,61160.0,61159.0,0.0019152]
[1723317857311,1.94755002,61160.0,61159.0,0.0019152]
[1723317857648,1.8538041,61160.0,61159.0,0.0009152]
[1723317857859,1.84958841,61160.0,61159.0,0.0009152]
[1723317858006,1.8638041,61160.0,61159.0,0.0029152]
[1723317858206,1.85958841,61160.0,61159.0,0.0029152]
[1723317858431,1.8538041,61160.0,61159.0,0.0009152]
[1723317858631,1.85558841,61160.0,61159.0,0.0019152]
[1723317858805,1.85758841,61160.0,61159.0,0.0029152]
[1723317859012,1.8558041,61160.0,61159.0,0.0019152]
[1723317859212,1.8598041,61160.0,61159.0,0.0019152]
[1723317859782,1.8618041,61160.0,61159.0,0.0029152]
[1723317860398,1.79885492,61160.0,61159.0,0.0029152]
[1723317860553,1.86219842,61160.0,61159.0,0.0029152]
[1723317860984,1.85619842,61160.0,61159.0,0.0019152]
[1723317861385,1.55327773,61160.0,61159.0,0.0019152]
[1723317861585,1.55327773,61160.0,61159.0,0.0009152]
[1723317861586,1.54627773,61160.0,61159.0,0.0009152]
[1723317861952,1.54927773,61160.0,61159.0,0.0019152]
[1723317862610,1.55627773,61160.0,61159.0,0.0029152]
[1723317862834,1.54927773,61160.0,61159.0,0.0019152]
[1723317863642,1.53927773,61160.0,61159.0,0.0019152]
[1723317863835,1.28437146,61160.0,61159.0,0.0807152]
[1723317864036,0.57505266,61160.0,61159.0,0.0807152]
[1723317864338,0.5196589,61160.0,61159.0,0.0817152]
[1723317864536,0.5126589,61160.0,61159.0,0.0807152]
[1723317864678,0.5196589,61160.0,61159.0,0.0817152]
[1723317864907,0.5166589,61160.0,61159.0,0.0807152]
[1723317865110,0.5166589,61160.0,61159.0,0.0797152]
[1723317865111,0.5096589,61160.0,61159.0,0.0797152]
[1723317865351,0.5166589,61160.0,61159.0,0.0807152]
[1723317865582,0.5196589,61160.0,61159.0,0.0817152]
[1723317866624,0.5166589,61160.0,61159.0,0.0807152]
[1723317867022,0.56864615,61160.0,61159.0,0.0817152]
[1723317867649,0.56864615,61160.0,61159.0,0.0807152]
[1723317867650,0.56164615,61160.0,61159.0,0.0807152]
[1723317867883,0.64194615,61160.0,61159.0,0.0807152]
[1723317868047,0.64894615,61160.0,61159.0,0.0817152]
[1723317868474,0.64594615,61160.0,61159.0,0.0807152]
[1723317868677,0.64594615,61160.0,61159.0,0.0817152]
[1723317868678,0.64894615,61160.0,61159.0,0.0817152]
[1723317874821,0.56864615,61160.0,61159.0,0.0817152]
[1723317875025,0.5999589,61160.0,61159.0,0.0817152]
[1723317878663,0.77798951,61160.0,61159.0,0.0029152]
[1723317878881,0.9053146,61160.0,61159.0,0.0029152]
[1723317879076,1.09333215,61160.0,61159.0,0.0029152]
[1723317879544,1.08911646,61160.0,61159.0,0.0029152]
[1723317879698,1.09333215,61160.0,61159.0,0.0029152]
[1723317879895,1.84333215,61160.0,61159.0,0.0029152]
[1723317880418,1.01979451,61160.0,61159.0,0.0029152]
[1723317880625,1.01557882,61160.0,61159.0,0.0029152]
[1723317880777,1.01979451,61160.0,61159.0,0.0029152]
[1723317880982,1.01557882,61160.0,61159.0,0.0029152]
[1723317885692,1.01979451,61160.0,61159.0,0.0029152]
[1723317886320,1.01557882,61160.0,61159.0,0.0029152]
[1723317886991,0.84697882,61160.0,61159.0,0.0029152]
[1723317887189,1.00084607,61160.0,61159.0,0.0029152]
[1723317887407,0.98632131,61160.0,61159.0,0.0029152]
[1723317887608,0.97632131,61160.0,61159.0,0.0029152]
[1723317887815,0.64900139,61160.0,61159.0,0.0648152]
[1723317890671,0.5999589,61160.0,61159.0,0.0648152]
[1723317891336,0.64900139,61160.0,61159.0,0.0648152]
[1723317892010,0.5999589,61160.0,61159.0,0.0648152]
[1723317895553,0.64897632,61160.0,61159.0,0.0648152]
[1723317895755,0.81248132,61160.0,61159.0,0.0648152]
[1723317895915,0.64897632,61160.0,61159.0,0.0648152]
[1723317896737,0.89432778,61160.0,61159.0,0.0648152]
[1723317896899,0.73503847,61160.0,61159.0,0.0029152]
[1723317898138,0.89854347,61160.0,61159.0,0.0029152]
[1723317900749,0.88854347,61160.0,61159.0,0.0009152]
[1723317900981,0.89154347,61160.0,61159.0,0.0019152]
[1723317901142,0.89854347,61160.0,61159.0,0.0029152]
[1723317901376,0.89154347,61160.0,61159.0,0.0019152]
[1723317901575,0.89154347,61160.0,61159.0,0.0029152]
[1723317901805,0.73503847,61160.0,61159.0,0.0029152]
[1723317902343,0.89554347,61160.0,61159.0,0.0019152]
[1723317902665,0.56867632,61160.0,61159.0,0.0029152]
[1723317902826,0.64897632,61160.0,61159.0,0.0029152]
[1723317903263,0.65319201,61160.0,61159.0,0.0029152]
[1723317903426,0.64897632,61160.0,61159.0,0.0029152]
[1723317903625,0.81248132,61160.0,61159.0,0.0029152]
[1723317904236,1.06711193,61160.0,61159.0,0.0029152]
[1723317904345,1.24306226,61160.0,61159.0,0.0029152]
[1723317904547,1.26014275,61160.0,61159.0,0.0029152]
[1723317905012,1.26014273,61160.0,61159.0,0.0029152]
[1723317905445,1.26065728,61160.0,61159.0,0.0029152]
[1723317906373,1.16258073,61160.0,61159.0,0.0029152]
[1723317906578,1.16262652,61160.0,61159.0,0.0029152]
[1723317907382,1.28522221,61160.0,61159.0,0.0029152]
[1723317908158,1.16262652,61160.0,61159.0,0.0029152]
[1723317908363,1.68319451,61160.0,61159.0,0.0029152]
[1723317908501,1.76270005,61160.0,61159.0,0.0029152]
[1723317909199,1.88530969,61160.0,61159.0,0.0029152]
[1723317909404,1.76270005,61160.0,61159.0,0.0029152]
[1723317909926,1.92684975,61160.0,61159.0,0.0029152]
[1723317910179,1.68240005,61160.0,61159.0,0.0029152]
[1723317910353,1.69760005,61160.0,61159.0,0.0029152]
[1723317910560,1.80306447,61160.0,61159.0,0.0029152]
[1723317911178,1.6804477,61160.0,61159.0,0.0029152]
[1723317911682,1.61809451,61160.0,61159.0,0.0029152]
[1723317911887,1.84484091,61160.0,61159.0,0.0029152]
[1723317912023,1.4260606,61160.0,61159.0,0.0675152]
[1723317912222,0.69804126,61160.0,61159.0,0.0675152]
[1723317913096,0.86154626,61160.0,61159.0,0.0675152]
[1723317913791,0.69804126,61160.0,61159.0,0.0675152]
[1723317913988,0.69804722,61160.0,61159.0,0.0675152]
[1723317914574,0.5999589,61160.0,61159.0,0.0675152]
[1723317914976,0.7634639,61160.0,61159.0,0.0675152]
[1723317915199,0.5999589,61160.0,61159.0,0.0675152]
[1723317916016,0.85531036,61160.0,61159.0,0.06736894]
[1723317916188,0.85531036,61160.0,61159.0,0.00276894]
[1723317916189,0.85952605,61160.0,61159.0,0.00276894]
[1723317916546,1.52166763,61160.0,61159.0,0.00276894]
[1723317917024,1.52204944,61160.0,61159.0,0.00276894]
[1723317918431,1.18218229,61160.0,61159.0,0.00276894]
[1723317918636,1.26248229,61160.0,61159.0,0.00276894]
[1723317919424,1.42598729,61160.0,61159.0,0.00276894]
[1723317920011,1.2980624,61160.0,61159.0,0.00276894]
[1723317920217,0.6980624,61160.0,61159.0,0.00276894]
[1723317920428,0.66208626,61160.0,61159.0,0.00276894]
[1723317920624,0.82559126,61160.0,61159.0,0.00276894]
[1723317921213,0.66208626,61160.0,61159.0,0.00276894]
[1723317921405,0.66208626,61160.0,61159.0,0.07856894]
[1723317921406,0.69806756,61160.0,61159.0,0.07856894]
[1723317923335,0.5999589,61160.0,61159.0,0.07856894]
[1723317924723,0.5999589,61160.0,61159.0,0.14306894]
[1723317925356,0.69807228,61160.0,61159.0,0.14306894]
[1723317925556,0.5999589,61160.0,61159.0,0.14306894]
[1723317926100,0.68180536,61160.0,61159.0,0.14306894]
[1723317926514,0.77991874,61160.0,61159.0,0.14306894]
[1723317926702,0.84531036,61160.0,61159.0,0.14306894]
[1723317927059,0.94342374,61160.0,61159.0,0.14306894]
[1723317927655,0.84531036,61160.0,61159.0,0.14306894]
[1723317928062,0.94342374,61160.0,61159.0,0.14306894]
[1723317929368,0.68180536,61160.0,61159.0,0.14306894]
[1723317929535,0.77991874,61160.0,61159.0,0.14306894]
[1723317930526,0.94342374,61160.0,61159.0,0.14306894]
[1723317931147,0.77991234,61160.0,61159.0,0.14306894]
[1723317931570,0.69806711,61160.0,61159.0,0.14306894]
[1723317932579,0.82516186,61160.0,61159.0,0.14306894]
[1723317933017,0.82516196,61160.0,61159.0,0.14306894]
[1723317933173,0.66165696,61160.0,61159.0,0.14306894]
[1723317934001,0.82516196,61160.0,61159.0,0.14306894]
[1723317934573,0.66165696,61160.0,61159.0,0.14306894]
[1723317935329,0.82516196,61160.0,61159.0,0.06726894]
[1723317936974,0.82513652,61160.0,61159.0,0.06726894]
[1723317939226,0.66163152,61160.0,61159.0,0.06726894]
[1723317939653,0.6735473,61160.0,61159.0,0.06726894]
[1723317939853,0.5999589,61160.0,61159.0,0.06726894]
[1723317940513,0.64901516,61160.0,61159.0,0.06726894]